fUST/lending_fUST_20240624
["ID","MTS","AMOUNT","RATE_DAILY","PERIOD"]
[330277662,1719222643048,-1470.27,0.00016986,2]
[330277663,1719222643057,-500.0,0.00016986,2]
[330277664,1719222643066,-3076.64,0.00016986,2]
[330277665,1719222643077,-500.0,0.00016986,2]
[330277666,1719222643086,-1339.48,0.00016986,2]
[330277667,1719222643096,-386.89549699,0.00016986,2]
[330277668,1719222643105,-999.77,0.00016986,2]
[330277669,1719222643114,-2340.71,0.00016986,2]
[330277670,1719222643123,-500.0,0.00016986,2]
[330277671,1719222643132,-2043.36,0.00016986,2]
[330277672,1719222643141,-500.0,0.00016986,2]
[330277673,1719222643159,-2381.46,0.00016986,2]
[330277674,1719222643168,-10574.72,0.00016986,2]
[330277675,1719222643178,-565.16,0.00016986,2]
[330277676,1719222643187,-518.30717639,0.00016986,2]
[330277677,1719222643197,-500.0,0.00016986,2]
[330277678,1719222643207,-500.0,0.00016986,2]
[330277679,1719222643217,-1370.5,0.00016986,2]
[330277680,1719222643226,-500.0,0.00016986,2]
[330277681,1719222643235,-546.7,0.00016986,2]
[330277682,1719222643245,-500.0,0.00016986,2]
[330277683,1719222643254,-500.0,0.00016986,2]
[330277684,1719222643263,-500.0,0.00016986,2]
[330277685,1719222643272,-724.98,0.00016986,2]
[330277686,1719222643282,-679.64,0.00016986,2]
[330277687,1719222643292,-500.0,0.00016986,2]
[330277688,1719222643302,-3072.69,0.00016986,2]
[330277689,1719222643312,-500.0,0.00016986,2]
[330277690,1719222643321,-2920.02,0.00016986,2]
[330277691,1719222643330,-610.21,0.00016986,2]
[330277692,1719222643341,-6555.2,0.00016986,2]
[330277693,1719222643349,-500.0,0.00016986,2]
[330277694,1719222643359,-1737.68,0.00016986,2]
[330277695,1719222643368,-443.49882441,0.00016986,2]
[330277696,1719222643377,-500.0,0.00016991,2]
[330277697,1719222643386,-500.0,0.00016991,2]
[330277698,1719222643398,-500.0,0.00016991,2]
[330277699,1719222643407,-500.0,0.00016991,2]
[330277700,1719222643416,-500.0,0.00016991,2]
[330277701,1719222643425,-500.0,0.00016991,2]
[330277702,1719222643435,-487.86393852,0.00016991,2]
[330277703,1719222643444,-500.0,0.00016991,2]
[330277704,1719222643453,-178.82498227,0.00016991,2]
[330277705,1719222643462,-500.0,0.00016991,2]
[330277706,1719222643471,-500.0,0.00016991,2]
[330277707,1719222643485,-500.0,0.00016991,2]
[330277708,1719222643495,-929.98,0.00016991,2]
[330277713,1719222643503,-500.0,0.00016991,2]
[330277718,1719222643514,-500.0,0.00016991,2]
[330277722,1719222643523,-500.0,0.00016991,2]
[330277726,1719222643533,-539.63,0.00017008,2]
[330277732,1719222643542,-500.0,0.00017008,2]
[330277737,1719222643553,-9910.39,0.00017046,2]
[330277745,1719222643562,-500.0,0.00017046,2]
[330277750,1719222643572,-539.9,0.00017046,2]
[330277754,1719222643581,-302.9,0.00017132,2]
[330277758,1719222643590,-420.0,0.00017139,2]
[330277762,1719222643599,-6736.92,0.00017146,2]
[330277767,1719222643609,-716.29,0.00017146,2]
[330277771,1719222643618,-500.0,0.00017146,2]
[330277775,1719222643628,-549.47,0.00017146,2]
[330277779,1719222643636,-736.46,0.00017146,2]
[330277783,1719222643652,-500.0,0.00017198,2]
[330277784,1719222643662,-761.8,0.00017198,2]
[330277787,1719222643671,-500.0,0.00017198,2]
[330277789,1719222643680,-500.0,0.00017198,2]
[330277791,1719222643688,-500.0,0.00017198,2]
[330277794,1719222643697,-507.62386156,0.00017198,2]
[330277797,1719222643707,-500.0,0.00017198,2]
[330277799,1719222643716,-500.0,0.00017198,2]
[330277802,1719222643725,-625.27,0.00017198,2]
[330277805,1719222643733,-500.0,0.00017198,2]
[330277807,1719222643742,-500.0,0.00017198,2]
[330277810,1719222643751,-500.0,0.00017198,2]
[330277813,1719222643759,-511.16,0.00017259,2]
[330277816,1719222643768,-446.33398699,0.0001726,2]
[330277818,1719222643777,-1081.27,0.0001726,2]
[330277820,1719222643788,-500.0,0.0001726,2]
[330277822,1719222643797,-500.0,0.0001726,2]
[330277824,1719222643806,-712.48,0.0001726,2]
[330277827,1719222643815,-500.0,0.0001726,2]
[330277830,1719222643824,-500.0,0.0001726,2]
[330277833,1719222643833,-576.58,0.0001726,2]
[330277836,1719222643842,-2767.39,0.0001726,2]
[330277839,1719222643851,-509.4,0.0001726,2]
[330277842,1719222643860,-460.93574751,0.0001726,2]
[330277845,1719222643874,-6070.0,0.0001726,2]
[330277850,1719222643885,-429.69646241,0.0001726,2]
[330277853,1719222643900,-4104.33487194,0.0001726,2]
[330277856,1719222643912,-663.96950385,0.0001726,2]
[330277859,1719222643923,-2652.07341429,0.0001726,2]
[330277862,1719222643932,-500.0,0.0001726,2]
[330277865,1719222643941,-500.0,0.0001726,2]
[330277868,1719222643950,-500.0,0.0001726,2]
[330277871,1719222643959,-1470.27,0.0001726,2]
[330277874,1719222643969,-500.0,0.0001726,2]
[330277877,1719222643978,-3076.64,0.0001726,2]
[330277880,1719222643987,-500.0,0.0001726,2]
[330277883,1719222643996,-1339.48,0.0001726,2]
[330277886,1719222644005,-999.77,0.0001726,2]
[330277888,1719222644013,-213.26658571,0.0001726,2]
[330277891,1719222644024,-999.9933705,0.0001726,2]
[330277895,1719222644035,-1127.45004379,0.0001726,2]
[330277898,1719222644044,-500.0,0.0001726,2]
[330277900,1719222644053,-2043.36,0.0001726,2]
[330277903,1719222644062,-500.0,0.0001726,2]
[330277909,1719222644072,-2381.46,0.0001726,2]
[330277917,1719222644081,-10574.72,0.0001726,2]
[330277923,1719222644090,-565.16,0.0001726,2]
[330277927,1719222644099,-500.0,0.0001726,2]
[330277931,1719222644109,-500.0,0.0001726,2]
[330277937,1719222644118,-19.54179723,0.0001726,2]
[330277941,1719222644130,-1350.95820277,0.0001726,2]
[330277945,1719222644139,-500.0,0.0001726,2]
[330277949,1719222644153,-546.7,0.0001726,2]
[330277953,1719222644162,-135.14179723,0.0001726,2]
[330277957,1719222644173,-364.85820277,0.0001726,2]
[330277961,1719222644182,-500.0,0.0001726,2]
[330277965,1719222644191,-500.0,0.0001726,2]
[330277967,1719222644200,-724.98,0.0001726,2]
[330277970,1719222644210,-679.64,0.0001726,2]
[330277973,1719222644220,-500.0,0.0001726,2]
[330277977,1719222644230,-3072.69,0.0001726,2]
[330277981,1719222644239,-500.0,0.0001726,2]
[330277983,1719222644248,-2920.02,0.0001726,2]
[330277986,1719222644257,-610.21,0.0001726,2]
[330277989,1719222644267,-6555.2,0.0001726,2]
[330277992,1719222644277,-500.0,0.0001726,2]
[330277995,1719222644286,-1737.68,0.0001726,2]
[330277998,1719222644295,-500.0,0.00017265,2]
[330278001,1719222644305,-500.0,0.00017265,2]
[330278004,1719222644315,-500.0,0.00017265,2]
[330278007,1719222644326,-500.0,0.00017265,2]
[330278010,1719222644335,-500.0,0.00017265,2]
[330278013,1719222644345,-579.77040175,0.00017265,2]
[330278015,1719222644354,-598.3760078,0.00017265,2]
[330278017,1719222644363,-500.0,0.00017265,2]
[330278020,1719222644373,-500.0,0.00017265,2]
[330278023,1719222644382,-929.98,0.00017265,2]
[330278025,1719222644391,-500.0,0.00017265,2]
[330278027,1719222644402,-500.0,0.00017265,2]
[330278029,1719222644411,-500.0,0.00017265,2]
[330278031,1719222644421,-539.63,0.00017282,2]
[330278033,1719222644430,-500.0,0.00017282,2]
[330278035,1719222644439,-302.9,0.00017317,2]
[330278037,1719222644448,-9910.39,0.0001732,2]
[330278039,1719222644457,-500.0,0.0001732,2]
[330278040,1719222644467,-6736.92,0.0001742,2]
[330278041,1719222644481,-716.29,0.0001742,2]
[330278042,1719222644490,-500.0,0.0001742,2]
[330278043,1719222644500,-549.47,0.0001742,2]
[330278044,1719222644509,-736.46,0.0001742,2]
[330278045,1719222644521,-500.0,0.00017472,2]
[330278046,1719222644530,-761.8,0.00017472,2]
[330278047,1719222644540,-500.0,0.00017472,2]
[330278048,1719222644549,-500.0,0.00017472,2]
[330278049,1719222644560,-500.0,0.00017472,2]
[330278050,1719222644570,-500.0,0.00017472,2]
[330278051,1719222644579,-500.0,0.00017472,2]
[330278052,1719222644588,-625.27,0.00017472,2]
[330278053,1719222644597,-500.0,0.00017472,2]
[330278054,1719222644607,-500.0,0.00017472,2]
[330278055,1719222644616,-500.0,0.00017472,2]
[330278056,1719222644626,-302.9,0.00017502,2]
[330278057,1719222644635,-511.16,0.00017533,2]
[330278058,1719222644645,-1081.27,0.00017534,2]
[330278059,1719222644655,-500.0,0.00017534,2]
[330278060,1719222644664,-500.0,0.00017534,2]
[330278061,1719222644673,-712.48,0.00017534,2]
[330278062,1719222644683,-500.0,0.00017534,2]
[330278063,1719222644692,-500.0,0.00017534,2]
[330278064,1719222644701,-576.58,0.00017534,2]
[330278065,1719222644712,-2767.39,0.00017534,2]
[330278066,1719222644721,-509.4,0.00017534,2]
[330278067,1719222644731,-14381.01,0.00017534,2]
[330278068,1719222644740,-500.0,0.00017534,2]
[330278069,1719222644750,-500.0,0.00017534,2]
[330278070,1719222644759,-500.0,0.00017534,2]
[330278071,1719222644768,-1470.27,0.00017534,2]
[330278072,1719222644777,-500.0,0.00017534,2]
[330278073,1719222644787,-3076.64,0.00017534,2]
[330278074,1719222644796,-500.0,0.00017534,2]
[330278075,1719222644806,-1339.48,0.00017534,2]
[330278076,1719222644816,-999.77,0.00017534,2]
[330278077,1719222644825,-2340.71,0.00017534,2]
[330278078,1719222644835,-500.0,0.00017534,2]
[330278079,1719222644844,-2043.36,0.00017534,2]
[330278080,1719222644854,-500.0,0.00017534,2]
[330278081,1719222644863,-2381.46,0.00017534,2]
[330278082,1719222644872,-10574.72,0.00017534,2]
[330278083,1719222644882,-565.16,0.00017534,2]
[330278084,1719222644891,-500.0,0.00017534,2]
[330278085,1719222644905,-500.0,0.00017534,2]
[330278087,1719222644915,-500.0,0.00017534,2]
[330278088,1719222644923,-1370.5,0.00017534,2]
[330278089,1719222644932,-546.7,0.00017534,2]
[330278090,1719222644942,-500.0,0.00017534,2]
[330278091,1719222644952,-500.0,0.00017534,2]
[330278092,1719222644961,-500.0,0.00017534,2]
[330278093,1719222644970,-724.98,0.00017534,2]
[330278094,1719222644979,-679.64,0.00017534,2]
[330278095,1719222644989,-500.0,0.00017534,2]
[330278096,1719222645001,-3072.69,0.00017534,2]
[330278097,1719222645010,-500.0,0.00017534,2]
[330278098,1719222645020,-2920.02,0.00017534,2]
[330278099,1719222645030,-610.21,0.00017534,2]
[330278100,1719222645040,-6555.2,0.00017534,2]
[330278101,1719222645050,-500.0,0.00017534,2]
[330278102,1719222645060,-1737.68,0.00017534,2]
[330278103,1719222645069,-153.0,0.00017534,2]
[330278104,1719222645079,-153.0,0.00017534,2]
[330278105,1719222645088,-153.0,0.00017534,2]
[330278106,1719222645098,-500.0,0.00017539,2]
[330278107,1719222645107,-500.0,0.00017539,2]
[330278108,1719222645118,-500.0,0.00017539,2]
[330278111,1719222645127,-500.0,0.00017539,2]
[330278113,1719222645136,-500.0,0.00017539,2]
[330278116,1719222645149,-500.0,0.00017539,2]
[330278119,1719222645158,-929.98,0.00017539,2]
[330278121,1719222645167,-500.0,0.00017539,2]
[330278123,1719222645177,-500.0,0.00017539,2]
[330278125,1719222645187,-500.0,0.00017539,2]
[330278127,1719222645196,-539.63,0.00017556,2]
[330278130,1719222645205,-500.0,0.00017556,2]
[330278132,1719222645215,-9910.39,0.00017594,2]
[330278135,1719222645224,-500.0,0.00017594,2]
[330278137,1719222645234,-302.9,0.00017687,2]
[330278139,1719222645243,-151.0,0.00017687,2]
[330278141,1719222645253,-6736.92,0.00017694,2]
[330278142,1719222645262,-716.29,0.00017694,2]
[330278143,1719222645271,-500.0,0.00017694,2]
[330278144,1719222645281,-549.47,0.00017694,2]
[330278145,1719222645290,-736.46,0.00017694,2]
[330278146,1719222645299,-154.80649189,0.00017717,2]
[330278147,1719222645309,-500.0,0.00017746,2]
[330278148,1719222645319,-761.8,0.00017746,2]
[330278149,1719222645328,-500.0,0.00017746,2]
[330278150,1719222645338,-500.0,0.00017746,2]
[330278151,1719222645348,-500.0,0.00017746,2]
[330278152,1719222645357,-500.0,0.00017746,2]
[330278153,1719222645367,-500.0,0.00017746,2]
[330278154,1719222645377,-625.27,0.00017746,2]
[330278155,1719222645386,-500.0,0.00017746,2]
[330278156,1719222645397,-500.0,0.00017746,2]
[330278157,1719222645406,-500.0,0.00017746,2]
[330278158,1719222645415,-511.16,0.00017807,2]
[330278159,1719222645425,-1081.27,0.00017808,2]
[330278160,1719222645435,-500.0,0.00017808,2]
[330278161,1719222645444,-500.0,0.00017808,2]
[330278162,1719222645454,-712.48,0.00017808,2]
[330278163,1719222645464,-500.0,0.00017808,2]
[330278164,1719222645474,-500.0,0.00017808,2]
[330278165,1719222645487,-576.58,0.00017808,2]
[330278166,1719222645497,-2767.39,0.00017808,2]
[330278167,1719222645507,-509.4,0.00017808,2]
[330278168,1719222645517,-14381.01,0.00017808,2]
[330278169,1719222645527,-500.0,0.00017808,2]
[330278170,1719222645537,-500.0,0.00017808,2]
[330278171,1719222645546,-500.0,0.00017808,2]
[330278172,1719222645558,-1470.27,0.00017808,2]
[330278173,1719222645568,-500.0,0.00017808,2]
[330278174,1719222645578,-3076.64,0.00017808,2]
[330278175,1719222645587,-500.0,0.00017808,2]
[330278176,1719222645597,-1339.48,0.00017808,2]
[330278177,1719222645606,-999.77,0.00017808,2]
[330278178,1719222645615,-2340.71,0.00017808,2]
[330278179,1719222645625,-500.0,0.00017808,2]
[330278180,1719222645634,-2043.36,0.00017808,2]
[330278181,1719222645646,-500.0,0.00017808,2]
[330278182,1719222645656,-2381.46,0.00017808,2]
[330278183,1719222645665,-10574.72,0.00017808,2]
[330278184,1719222645675,-565.16,0.00017808,2]
[330278185,1719222645684,-500.0,0.00017808,2]
[330278186,1719222645693,-500.0,0.00017808,2]
[330278187,1719222645703,-305.84850322,0.00017808,2]
[330278188,1719222645713,-1370.5,0.00017808,2]
[330278189,1719222645722,-546.7,0.00017808,2]
[330278190,1719222645732,-500.0,0.00017808,2]
[330278191,1719222645742,-500.0,0.00017808,2]
[330278192,1719222645751,-500.0,0.00017808,2]
[330278193,1719222645760,-724.98,0.00017808,2]
[330278194,1719222645769,-679.64,0.00017808,2]
[330278195,1719222645778,-3072.69,0.00017808,2]
[330278196,1719222645788,-596.24136514,0.00017808,2]
[330278197,1719222645798,-500.0,0.00017808,2]
[330278198,1719222645807,-2920.02,0.00017808,2]
[330278199,1719222645817,-610.21,0.00017808,2]
[330278200,1719222645826,-6555.2,0.00017808,2]
[330278201,1719222645836,-500.0,0.00017808,2]
[330278202,1719222645846,-1737.68,0.00017808,2]
[330278203,1719222645855,-500.0,0.00017813,2]
[330278206,1719222645985,-500.0,0.00017813,2]
[330278207,1719222645996,-500.0,0.00017813,2]
[330278208,1719222646006,-500.0,0.00017813,2]
[330278209,1719222646016,-500.0,0.00017813,2]
[330278210,1719222646026,-500.0,0.00017813,2]
[330278211,1719222646037,-929.98,0.00017813,2]
[330278213,1719222646047,-500.0,0.00017813,2]
[330278215,1719222646056,-500.0,0.00017813,2]
[330278216,1719222646066,-500.0,0.00017813,2]
[330278218,1719222646075,-539.63,0.0001783,2]
[330278219,1719222646084,-500.0,0.0001783,2]
[330278220,1719222646093,-9910.39,0.00017868,2]
[330278221,1719222646102,-500.0,0.00017868,2]
[330278222,1719222646111,-151.0,0.00017868,2]
[330278223,1719222646120,-302.9,0.00017872,2]
[330278224,1719222646129,-151.0,0.00017872,2]
[330278225,1719222646140,-155.0,0.0001789,2]
[330278226,1719222646152,-6736.92,0.00017968,2]
[330278227,1719222646161,-716.29,0.00017968,2]
[330278228,1719222646171,-500.0,0.00017968,2]
[330278229,1719222646180,-549.47,0.00017968,2]
[330278230,1719222646189,-736.46,0.00017968,2]
[330278231,1719222646199,-154.80649189,0.00017975,2]
[330278232,1719222646208,-154.80649189,0.00017975,2]
[330278233,1719222646218,-216.08546463,0.00017999,2]
[330278234,1719222646227,-528.25375242,0.00018003,2]
[330278235,1719222646236,-250.0,0.00018003,2]
[330278236,1719222646245,-500.0,0.00018003,2]
[330278237,1719222646254,-500.0,0.00018003,2]
[330278238,1719222646264,-500.0,0.00018003,2]
[330278239,1719222646273,-500.0,0.00018003,2]
[330278240,1719222646283,-500.0,0.00018003,2]
[330278241,1719222646292,-168.5834699,0.00018007,2]
[330278242,1719222646302,-500.0,0.0001802,2]
[330278243,1719222646311,-761.8,0.0001802,2]
[330278244,1719222646321,-500.0,0.0001802,2]
[330278245,1719222646331,-500.0,0.0001802,2]
[330278246,1719222646340,-500.0,0.0001802,2]
[330278247,1719222646349,-500.0,0.0001802,2]
[330278248,1719222646359,-500.0,0.0001802,2]
[330278249,1719222646369,-625.27,0.0001802,2]
[330278250,1719222646378,-500.0,0.0001802,2]
[330278251,1719222646387,-500.0,0.0001802,2]
[330278252,1719222646399,-500.0,0.0001802,2]
[330278253,1719222646408,-302.9,0.00018058,2]
[330278254,1719222646417,-151.0,0.00018058,2]
[330278255,1719222646426,-8500.66612033,0.00018076,2]
[330278256,1719222646435,-500.0,0.0001808,2]
[330278257,1719222646445,-122624.71159645,0.0001808,2]
[330278258,1719222646455,-500.0,0.0001808,2]
[330278259,1719222646464,-500.0,0.0001808,2]
[330278260,1719222646474,-500.0,0.0001808,2]
[330278261,1719222646485,-500.0,0.0001808,2]
[330278262,1719222646495,-500.0,0.0001808,2]
[330278263,1719222646505,-297.7263085,0.0001808,2]
[330278264,1719222646514,-515.22,0.0001808,2]
[330278265,1719222646525,-500.0,0.0001808,2]
[330278271,1719222646535,-151.0,0.0001808,2]
[330278275,1719222646544,-500.0,0.0001808,2]
[330278280,1719222646553,-500.0,0.0001808,2]
[330278283,1719222646564,-20000.0,0.00018081,2]
[330278286,1719222646574,-511.16,0.00018081,2]
[330278289,1719222646584,-500.0,0.00018082,2]
[330278292,1719222646593,-500.0,0.00018082,2]
[330278295,1719222646603,-500.56636665,0.00018082,2]
[330278298,1719222646612,-500.0,0.00018082,2]
[330278300,1719222646621,-779.74,0.00018082,2]
[330278303,1719222646631,-500.0,0.00018082,2]
[330278306,1719222646640,-2095.96,0.00018082,2]
[330278309,1719222646651,-153.424478,0.00018082,2]
[330278311,1719222646660,-1081.27,0.00018082,2]
[330278313,1719222646669,-500.0,0.00018082,2]
[330278315,1719222646679,-500.0,0.00018082,2]
[330278317,1719222646688,-712.48,0.00018082,2]
[330278319,1719222646697,-500.0,0.00018082,2]
[330278321,1719222646707,-500.0,0.00018082,2]
[330278323,1719222646717,-576.58,0.00018082,2]
[330278325,1719222646727,-2767.39,0.00018082,2]
[330278326,1719222646736,-509.4,0.00018082,2]
[330278327,1719222646746,-14381.01,0.00018082,2]
[330278329,1719222646756,-500.0,0.00018082,2]
[330278331,1719222646765,-500.0,0.00018082,2]
[330278333,1719222646774,-500.0,0.00018082,2]
[330278335,1719222646784,-1470.27,0.00018082,2]
[330278337,1719222646793,-500.0,0.00018082,2]
[330278338,1719222646803,-3076.64,0.00018082,2]
[330278340,1719222646812,-500.0,0.00018082,2]
[330278341,1719222646821,-1339.48,0.00018082,2]
[330278342,1719222646831,-999.77,0.00018082,2]
[330278343,1719222646840,-2340.71,0.00018082,2]
[330278344,1719222646850,-500.0,0.00018082,2]
[330278345,1719222646860,-2043.36,0.00018082,2]
[330278346,1719222646869,-500.0,0.00018082,2]
[330278347,1719222646879,-2381.46,0.00018082,2]
[330278348,1719222646888,-10574.72,0.00018082,2]
[330278349,1719222646899,-565.16,0.00018082,2]
[330278350,1719222646908,-500.0,0.00018082,2]
[330278351,1719222646918,-500.0,0.00018082,2]
[330278352,1719222646928,-1370.5,0.00018082,2]
[330278353,1719222646937,-546.7,0.00018082,2]
[330278354,1719222646946,-500.0,0.00018082,2]
[330278355,1719222646956,-500.0,0.00018082,2]
[330278356,1719222646965,-500.0,0.00018082,2]
[330278357,1719222646975,-724.98,0.00018082,2]
[330278358,1719222646985,-679.64,0.00018082,2]
[330278360,1719222646995,-3072.69,0.00018082,2]
[330278362,1719222647004,-500.0,0.00018082,2]
[330278364,1719222647014,-2920.02,0.00018082,2]
[330278365,1719222647023,-610.21,0.00018082,2]
[330278367,1719222647033,-6555.2,0.00018082,2]
[330278369,1719222647042,-500.0,0.00018082,2]
[330278371,1719222647051,-1737.68,0.00018082,2]
[330278373,1719222647061,-500.0,0.00018087,2]
[330278374,1719222647070,-520.59,0.00018087,2]
[330278376,1719222647079,-579.11053631,0.00018087,2]
[330278378,1719222647089,-500.0,0.00018087,2]
[330278380,1719222647098,-500.0,0.00018087,2]
[330278382,1719222647107,-500.0,0.00018087,2]
[330278383,1719222647116,-500.0,0.00018087,2]
[330278385,1719222647125,-441.54170308,0.00018087,2]
[330278387,1719222647135,-500.0,0.00018087,2]
[330278389,1719222647146,-500.0,0.00018087,2]
[330278391,1719222647155,-500.0,0.00018087,2]
[330278392,1719222647164,-500.0,0.00018087,2]
[330278394,1719222647173,-500.0,0.00018087,2]
[330278396,1719222647183,-500.0,0.00018087,2]
[330278398,1719222647192,-262.0126823,0.00018087,2]
[330278400,1719222647201,-500.0,0.00018087,2]
[330278401,1719222647211,-500.0,0.00018087,2]
[330278403,1719222647220,-500.0,0.00018087,2]
[330278405,1719222647229,-500.0,0.00018087,2]
[330278407,1719222647238,-500.0,0.00018087,2]
[330278408,1719222647248,-500.0,0.00018087,2]
[330278409,1719222647257,-929.98,0.00018087,2]
[330278410,1719222647268,-500.0,0.00018087,2]
[330278411,1719222647277,-500.0,0.00018087,2]
[330278412,1719222647287,-500.0,0.00018087,2]
[330278413,1719222647296,-155.67922253,0.00018088,2]
[330278414,1719222647306,-539.63,0.00018104,2]
[330278415,1719222647315,-2432.78645126,0.00018114,2]
[330278416,1719222647325,-518.26813159,0.00018115,2]
[330278417,1719222647335,-500.0,0.00018115,2]
[330278418,1719222647344,-500.0,0.00018115,2]
[330278419,1719222647354,-151.0,0.00018115,2]
[330278420,1719222647364,-153.243,0.00018142,2]
[330278421,1719222647373,-876.0,0.00018142,2]
[330278422,1719222647383,-9910.39,0.00018142,2]
[330278423,1719222647392,-500.0,0.00018142,2]
[330278424,1719222647405,-513.29,0.00018213,2]
[330278425,1719222647415,-608.1,0.00018213,2]
[330278426,1719222647424,-721.72,0.00018213,2]
[330278427,1719222647435,-674.66,0.00018213,2]
[330278428,1719222647445,-193.26898841,0.00018219,2]
[330278429,1719222647455,-6736.92,0.00018242,2]
[330278430,1719222647464,-716.29,0.00018242,2]
[330278431,1719222647474,-500.0,0.00018242,2]
[330278432,1719222647489,-549.47,0.00018242,2]
[330278433,1719222647499,-736.46,0.00018242,2]
[330278434,1719222647509,-302.9,0.00018243,2]
[330278435,1719222647520,-151.0,0.00018243,2]
[330278436,1719222647529,-250.0,0.00018277,2]
[330278437,1719222647539,-500.0,0.00018277,2]
[330278438,1719222647549,-500.0,0.00018277,2]
[330278439,1719222647559,-500.0,0.00018277,2]
[330278440,1719222647572,-500.0,0.00018277,2]
[330278441,1719222647582,-500.0,0.00018294,2]
[330278442,1719222647591,-761.8,0.00018294,2]
[330278443,1719222647600,-500.0,0.00018294,2]
[330278444,1719222647610,-500.0,0.00018294,2]
[330278445,1719222647620,-500.0,0.00018294,2]
[330278446,1719222647630,-500.0,0.00018294,2]
[330278447,1719222647640,-500.0,0.00018294,2]
[330278448,1719222647652,-625.27,0.00018294,2]
[330278449,1719222647661,-500.0,0.00018294,2]
[330278450,1719222647670,-500.0,0.00018294,2]
[330278451,1719222647679,-500.0,0.00018294,2]
[330278452,1719222647688,-516.04313146,0.00018354,2]
[330278453,1719222647697,-500.0,0.00018354,2]
[330278454,1719222647706,-500.0,0.00018354,2]
[330278455,1719222647715,-159.97,0.00018354,2]
[330278456,1719222647724,-500.0,0.00018354,2]
[330278457,1719222647733,-500.0,0.00018354,2]
[330278458,1719222647743,-515.22,0.00018354,2]
[330278459,1719222647752,-500.0,0.00018354,2]
[330278460,1719222647762,-511.16,0.00018355,2]
[330278461,1719222647771,-500.0,0.00018356,2]
[330278462,1719222647780,-598.15,0.00018356,2]
[330278463,1719222647790,-779.74,0.00018356,2]
[330278464,1719222647800,-500.0,0.00018356,2]
[330278465,1719222647810,-2095.96,0.00018356,2]
[330278466,1719222647819,-1081.27,0.00018356,2]
[330278467,1719222647829,-500.0,0.00018356,2]
[330278468,1719222647839,-397.35248059,0.00018356,2]
[330278469,1719222647848,-712.48,0.00018356,2]
[330278470,1719222647858,-500.0,0.00018356,2]
[330278471,1719222647867,-500.0,0.00018356,2]
[330278472,1719222647876,-576.58,0.00018356,2]
[330278473,1719222647886,-2767.39,0.00018356,2]
[330278474,1719222647898,-509.4,0.00018356,2]
[330278475,1719222647907,-14381.01,0.00018356,2]
[330278476,1719222647918,-500.0,0.00018356,2]
[330278477,1719222647927,-332.96434683,0.00018356,2]
[330278478,1719222647936,-500.0,0.00018356,2]
[330278479,1719222647945,-1470.27,0.00018356,2]
[330278480,1719222647955,-500.0,0.00018356,2]
[330278481,1719222647966,-3076.64,0.00018356,2]
[330278482,1719222647975,-500.0,0.00018356,2]
[330278483,1719222647985,-1339.48,0.00018356,2]
[330278484,1719222647994,-999.77,0.00018356,2]